bitfinex/quotes_ETHUSD_20250814
["timestamp","ask_amount","ask_price","bid_price","bid_amount"]
[1755139808151,14.5,4746.0,4744.6,3.331]
[1755139808360,14.5,4746.0,4744.7,3.332]
[1755139808361,0.9441,4745.9,4744.7,3.332]
[1755139808674,14.5,4746.0,4744.7,3.332]
[1755139808832,37.56956238,4747.4,4744.7,3.332]
[1755139808833,0.4723,4746.6,4744.8,0.3428]
[1755139809022,0.4723,4747.0,4744.9,0.0767]
[1755139809225,0.4723,4747.0,4745.0,0.3428]
[1755139809425,0.4723,4747.0,4745.1,0.0767]
[1755139809641,0.4723,4747.0,4745.2,3.332]
[1755139810055,0.4718,4747.2,4745.3,0.3428]
[1755139810263,0.9441,4747.9,4745.3,0.4195]
[1755139810473,0.9441,4747.5,4745.3,0.4195]
[1755139810630,0.19502669,4748.8,4745.4,0.0767]
[1755139810960,0.9441,4748.1,4745.4,0.0767]
[1755139811254,0.9441,4748.1,4745.5,0.3428]
[1755139811432,0.9441,4748.6,4745.6,0.0767]
[1755139811633,0.29851328,4749.5,4745.7,0.3428]
[1755139811945,0.9441,4748.5,4745.8,3.4087]
[1755139812148,0.29851328,4749.5,4745.9,0.4195]
[1755139812347,0.9441,4748.4,4745.9,0.4195]
[1755139812548,0.9441,4748.3,4745.9,0.4195]
[1755139813065,0.4718,4748.2,4745.9,0.4195]
[1755139814859,0.4718,4748.2,4746.0,0.0767]
[1755139815260,0.4718,4748.2,4746.1,0.3428]
[1755139815432,0.4718,4748.2,4746.2,0.0767]
[1755139815843,0.4718,4748.2,4746.3,0.3428]
[1755139816059,0.4723,4748.1,4746.3,0.3428]
[1755139816256,0.4718,4748.0,4746.3,0.3428]
[1755139818188,0.4723,4747.9,4746.3,0.3428]
[1755139818397,0.4718,4747.8,4746.3,0.3428]
[1755139818955,0.4723,4747.7,4745.9,0.3428]
[1755139819261,0.19502073,4748.8,4745.9,0.3428]
[1755139819566,0.9441,4748.8,4746.0,6.4901375]
[1755139819990,0.9441,4748.7,4746.1,0.3428]
[1755139820197,0.19507743,4749.5,4746.1,0.3428]
[1755139820395,0.9441,4748.6,4746.1,0.3428]
[1755139820595,0.9441,4748.5,4746.1,0.3428]
[1755139820774,0.9441,4748.4,4746.2,3.33]
[1755139820977,0.4723,4748.4,4746.2,3.33]
[1755139821173,0.4718,4748.3,4746.3,0.3428]
[1755139821803,0.4941,4748.2,4746.3,0.3428]
[1755139821963,0.443,4748.1,4746.3,0.3428]
[1755139822464,0.4941,4748.0,4746.3,0.3428]
[1755139822903,0.35153347,4749.5,4746.4,0.0767]
[1755139823103,0.9371,4748.5,4746.5,10.2234375]
[1755139823406,0.9371,4748.5,4746.4,0.0767]
[1755139823407,0.9371,4748.5,4746.6,13.8962375]
[1755139823560,0.9371,4748.5,4746.7,5.047]
[1755139823756,0.64497872,4750.2,4746.7,5.047]
[1755139823757,0.9371,4748.4,4746.7,5.047]
[1755139824407,0.7992176,4750.2,4746.7,5.047]
[1755139824569,0.9371,4748.3,4746.8,13.5534375]
[1755139824776,0.9371,4748.2,4746.9,10.2234375]
[1755139824975,0.9371,4748.1,4746.9,10.2234375]
[1755139825167,0.9371,4748.0,4746.9,10.2234375]
[1755139825372,0.19507743,4749.5,4746.9,10.2234375]
[1755139825373,0.9371,4747.9,4746.9,10.2234375]
[1755139825599,0.9371,4747.8,4746.9,10.2234375]
[1755139827405,0.4941,4747.8,4746.9,10.2234375]
[1755139827587,0.443,4747.7,4746.9,10.2234375]
[1755139827790,0.443,4747.7,4747.0,3.0834375]
[1755139828014,0.443,4748.1,4747.0,3.0834375]
[1755139828820,0.4941,4748.0,4747.0,3.0834375]
[1755139829314,0.443,4747.9,4747.0,3.0834375]
[1755139829693,0.4941,4747.8,4747.0,3.0834375]
[1755139830012,0.443,4747.7,4747.0,3.0834375]
[1755139831210,0.4941,4748.2,4747.0,3.0834375]
[1755139831984,0.443,4748.5,4747.0,3.0834375]
[1755139833122,0.443,4749.0,4747.1,10.5662375]
[1755139833308,0.4941,4748.9,4747.1,10.5662375]
[1755139833812,0.443,4748.8,4747.2,10.2234375]
[1755139834014,0.443,4748.8,4747.3,3.328]
[1755139834227,0.443,4748.8,4747.3,3.6708]
[1755139834584,0.443,4748.8,4747.4,3.0834375]
[1755139834786,0.4941,4748.7,4747.4,3.0834375]
[1755139834989,0.4941,4748.7,4747.5,3.0834375]
[1755139835218,0.4941,4748.7,4747.6,3.0834375]
[1755139836016,0.4941,4748.7,4747.7,3.0834375]
[1755139836188,0.4941,4748.7,4747.8,6.4114375]
[1755139836386,0.443,4748.6,4747.8,6.4114375]
[1755139836589,0.4941,4748.7,4747.8,6.4114375]
[1755139836590,0.4941,4748.7,4747.9,3.0834375]
[1755139837026,0.4941,4748.7,4748.0,3.0834375]
[1755139837329,0.4941,4749.3,4748.1,3.0834375]
[1755139837519,0.4941,4749.3,4748.2,3.0834375]
[1755139837828,0.4941,4749.3,4748.3,6.4104375]
[1755139838330,0.443,4749.2,4748.3,6.4104375]
[1755139838991,0.443,4749.2,4748.4,3.327]
[1755139838992,0.4941,4749.1,4748.4,3.327]
[1755139839427,0.443,4749.0,4748.4,3.327]
[1755139839596,0.4941,4748.9,4748.4,3.327]
[1755139839791,0.443,4748.8,4748.4,3.327]
[1755139840188,0.4941,4748.7,4748.4,3.327]
[1755139840387,0.443,4748.6,4748.4,3.327]
[1755139840601,0.9371,4748.5,4748.4,3.327]
[1755139841605,0.9371,4749.0,4748.4,3.327]
[1755139842316,0.4941,4749.0,4748.4,3.327]
[1755139842522,0.9371,4749.0,4748.4,3.327]
[1755139845413,0.9371,4749.6,4748.4,3.327]
[1755139845735,0.9371,4749.2,4748.5,3.0834375]
[1755139850035,0.9371,4749.1,4748.5,3.0834375]
[1755139850240,0.9371,4749.0,4748.5,3.0834375]
[1755139850442,0.9371,4748.9,4748.5,3.0834375]
[1755139850739,0.56387296,4750.2,4748.5,3.0834375]
[1755139850944,0.9371,4748.8,4748.5,3.0834375]
[1755139851133,0.9371,4748.7,4748.5,3.0834375]
[1755139851459,0.9151,4748.6,4748.4,3.327]
[1755139851627,0.9151,4748.6,4748.5,4.29]
[1755139852214,0.9151,4749.3,4748.5,4.29]
[1755139853021,0.4628,4749.3,4748.5,4.29]
[1755139853255,0.4628,4749.7,4748.5,4.29]
[1755139853424,0.4628,4749.7,4748.6,4.29]
[1755139854213,0.4628,4750.5,4748.5,4.29]
[1755139854410,0.4628,4750.5,4748.6,0.4195]
[1755139854640,0.4628,4750.5,4748.7,4.29]
[1755139854947,0.4628,4750.5,4748.8,7.9558]
[1755139855142,0.4628,4750.5,4748.9,4.29]
[1755139855347,0.4628,4750.5,4748.9,4.7095]
[1755139856550,0.9151,4751.0,4749.0,0.3428]
[1755139856958,0.9151,4751.0,4749.1,4.3667]
[1755139857155,0.9151,4751.0,4749.2,0.3428]
[1755139857453,0.9151,4751.0,4749.3,3.322]
[1755139857826,0.9151,4751.0,4749.4,0.3428]
[1755139859862,0.9151,4751.3,4749.5,0.0767]
[1755139860154,0.9151,4751.3,4749.5,4.3667]
[1755139860357,0.4523,4751.2,4749.5,4.3667]
[1755139860559,0.9151,4751.2,4749.5,4.29]
[1755139860762,0.9151,4751.2,4749.6,3.321]
[1755139860968,0.9151,4751.1,4749.7,3.321]
[1755139861190,0.19615251,4751.1,4749.8,3.321]
[1755139861463,0.9151,4751.0,4749.8,3.321]
[1755139861668,0.9151,4750.9,4749.8,3.321]
[1755139861868,0.19615251,4751.1,4749.8,3.321]
[1755139862041,0.9151,4750.8,4749.8,3.321]
[1755139862237,0.9151,4750.7,4749.8,3.321]
[1755139862762,0.9151,4750.6,4749.8,3.321]
[1755139862945,0.9151,4750.5,4749.8,3.321]
[1755139863556,0.4628,4751.2,4749.9,4.29]
[1755139864139,0.4628,4751.2,4750.0,4.29]
[1755139864651,0.4628,4751.2,4749.9,4.29]
[1755139865673,0.4523,4751.1,4749.9,4.29]
[1755139867679,0.4628,4751.0,4749.9,4.29]
[1755139868157,0.4523,4750.9,4749.9,4.29]
[1755139868565,0.4628,4750.8,4749.9,4.29]
[1755139868946,0.4523,4750.7,4749.9,4.29]
[1755139869158,0.4523,4750.7,4749.8,3.321]
[1755139869464,0.4628,4750.6,4749.8,3.321]
[1755139870173,0.4523,4750.5,4749.8,3.321]
[1755139871253,0.4523,4750.5,4749.9,4.29]
[1755139872359,0.4523,4750.5,4750.0,4.29]
[1755139872674,0.9151,4750.4,4750.0,4.29]
[1755139872840,0.9151,4750.3,4750.0,4.29]
[1755139873039,0.9151,4750.2,4750.1,4.29]
[1755139873678,0.9151,4750.2,4750.1,7.608]
[1755139874757,0.9151,4750.2,4750.1,4.29]
[1755139874957,0.9151,4750.2,4750.1,7.607]
[1755139876067,0.9151,4750.2,4750.1,7.60161568]
[1755139876847,0.4523,4750.5,4750.1,7.60161568]
[1755139877077,0.9151,4750.5,4750.1,7.60161568]
[1755139877358,0.64780313,4751.7,4750.1,7.60161568]
[1755139877552,0.9151,4751.6,4750.2,4.28461568]
[1755139877773,0.9151,4751.6,4750.3,4.28461568]
[1755139877979,0.9151,4751.5,4750.3,4.28461568]
[1755139878183,0.4523,4751.4,4750.3,4.28461568]
[1755139878359,0.9151,4751.4,4750.3,4.28461568]
[1755139878758,0.9151,4751.3,4750.3,4.28461568]
[1755139879776,0.9151,4751.7,4750.4,4.28461568]
[1755139881455,1.32104747,4752.4,4750.4,4.28461568]
[1755139881456,0.9173,4751.6,4750.4,4.28461568]
[1755139881659,0.9173,4751.5,4750.5,3.316]
[1755139881977,0.9173,4751.4,4750.5,3.316]
[1755139882177,0.4317,4751.3,4750.5,3.316]
[1755139882379,0.9173,4751.3,4750.5,3.316]
[1755139882759,0.9173,4751.2,4750.5,3.316]
[1755139882960,0.9173,4751.1,4750.5,3.316]
[1755139883171,0.9173,4751.0,4750.5,3.316]
[1755139883392,0.9173,4750.9,4749.5,5.044]
[1755139883603,37.56956238,4749.6,4747.6,1.50143826]
[1755139883761,37.56956238,4748.9,4747.7,3.315]
[1755139883960,1.56668714,4748.8,4747.7,3.315]
[1755139884457,0.9173,4748.7,4747.7,3.315]
[1755139884883,0.9173,4748.7,4746.8,5.3868]
[1755139885288,14.5,4748.5,4746.8,5.3868]
[1755139886184,14.5,4748.5,4746.9,3.315]
[1755139886391,0.9173,4748.4,4746.9,3.315]
[1755139886820,0.9173,4748.3,4746.9,3.315]
[1755139886983,14.5,4747.8,4746.9,3.315]
[1755139887175,0.9173,4747.7,4746.9,3.315]
[1755139887860,14.5,4747.6,4746.9,3.315]
[1755139891959,14.9856,4747.6,4746.9,3.315]
[1755139892165,0.4317,4747.5,4746.9,3.315]
[1755139892360,0.9173,4747.5,4746.9,3.315]
[1755139892771,0.9173,4747.4,4746.9,3.315]
[1755139892963,15.4173,4747.3,4746.9,3.315]
[1755139893174,0.9173,4747.2,4746.9,3.315]
[1755139893603,0.9173,4747.1,4746.9,3.315]
[1755139893801,14.5,4747.0,4746.9,3.315]
[1755139894274,14.5,4747.0,4746.9,3.6578]
[1755139894602,14.5,4747.0,4746.9,3.315]
[1755139895383,14.5,4747.0,4746.9,3.314]
[1755139895588,15.4173,4747.0,4746.8,5.044]
[1755139895786,0.9173,4746.9,4745.1,5.047]
[1755139896101,0.9173,4746.8,4745.2,3.314]
[1755139896274,14.5,4746.5,4745.2,3.314]
[1755139896477,0.9173,4746.4,4745.2,3.314]
[1755139896673,37.56956238,4747.7,4745.2,3.314]
[1755139896895,0.9173,4747.5,4745.3,0.3428]
[1755139897093,0.64495391,4748.3,4745.3,0.3428]
[1755139897289,14.5,4746.3,4745.3,0.3428]
[1755139899208,14.5,4746.3,4745.2,3.6568]
[1755139899405,0.16078336,4747.3,4745.1,5.047]
[1755139899406,0.4856,4746.2,4745.1,5.047]
[1755139899707,0.4856,4746.2,4745.2,3.314]
[1755139899708,0.9173,4746.2,4745.2,3.314]
[1755139900206,14.5,4745.3,4745.2,3.314]
[1755139900505,15.4173,4745.3,4745.2,3.314]
[1755139903314,15.4173,4745.3,4745.1,5.047]
[1755139903484,15.4173,4745.3,4740.6,0.2098]
[1755139903485,39.92686238,4745.2,4742.3,0.3428]
[1755139903683,0.9173,4745.1,4742.6,3.6568]
[1755139903908,14.5,4743.6,4742.7,0.3428]
[1755139904307,14.5,4743.6,4742.8,0.0767]
[1755139904510,14.5,4743.6,4742.7,0.3428]
[1755139906316,14.5,4743.6,4742.8,3.314]
[1755139906820,14.5,4743.6,4742.9,0.3428]
[1755139908816,14.5,4743.6,4742.8,3.314]
[1755139909597,14.5,4743.6,4742.8,3.6568]
[1755139911999,0.4856,4744.5,4742.8,3.6568]
[1755139912320,0.4851,4745.0,4742.9,0.4195]
[1755139912506,14.5,4744.4,4742.9,0.4195]
[1755139913397,0.19537175,4744.3,4742.9,0.4195]
[1755139915027,0.19537175,4744.3,4742.8,3.314]
[1755139915320,14.5,4744.4,4743.0,0.4195]
[1755139915690,14.5,4744.4,4743.0,0.3428]
[1755139915892,14.5,4744.4,4743.1,0.0767]
[1755139916114,0.927,4745.2,4743.2,0.3428]
[1755139916312,0.19546255,4745.1,4743.2,0.3428]
[1755139916521,14.5,4744.8,4743.3,0.0767]
[1755139916726,0.19546255,4744.7,4743.4,3.313]
[1755139917421,0.19546255,4744.6,4743.5,4.28461568]
[1755139917599,0.19546255,4744.7,4743.5,4.28461568]
[1755139917798,0.19546255,4744.6,4743.5,4.28461568]
[1755139918012,0.19546255,4744.7,4743.5,4.28461568]
[1755139918306,0.19546255,4744.6,4743.6,4.28461568]
[1755139918506,14.5,4744.8,4743.6,4.28461568]
[1755139918724,0.19563816,4744.7,4743.1,4.28461568]
[1755139918914,0.19563816,4744.6,4743.2,3.313]
[1755139919098,0.19563816,4744.5,4743.2,3.313]
[1755139919299,0.19563816,4744.4,4743.2,3.313]
[1755139919503,0.19563816,4744.3,4743.2,3.313]
[1755139919724,0.19570952,4744.3,4743.2,3.313]
[1755139919912,0.19570952,4744.7,4743.2,3.313]
[1755139920114,0.19570952,4744.6,4743.2,3.6486]
[1755139920398,0.68080952,4744.5,4743.2,3.313]
[1755139920599,0.19570952,4744.4,4743.2,3.313]
[1755139920804,0.19570952,4744.3,4743.2,3.313]
[1755139921004,0.4851,4744.5,4743.2,3.313]
[1755139921199,0.19575302,4744.4,4743.2,3.313]
[1755139921401,0.19575302,4744.3,4743.3,8.363]
[1755139921611,0.19575302,4744.2,4743.3,8.363]
[1755139921828,0.63765302,4744.1,4743.3,8.363]
[1755139922132,0.4419,4744.1,4743.3,8.363]
[1755139922319,0.19586428,4744.0,4743.3,8.363]
[1755139922522,0.4419,4744.1,4743.3,8.363]
[1755139922701,0.19593764,4744.0,4743.3,8.363]
[1755139922906,0.4419,4744.5,4743.3,8.363]
[1755139923115,0.19592969,4744.4,4743.3,8.363]
[1755139923314,0.19592969,4744.3,4743.3,8.363]
[1755139923519,0.19592969,4744.2,4743.3,8.363]
[1755139923714,0.19592969,4744.1,4743.4,4.28461568]
[1755139923916,0.19592969,4744.0,4743.5,4.28461568]
[1755139924119,0.4851,4744.0,4743.5,4.28461568]
[1755139924315,0.196155,4743.9,4743.6,4.28461568]
[1755139924632,0.4851,4744.5,4743.7,4.28461568]
[1755139924807,0.4851,4744.5,4743.8,3.312]
[1755139925007,0.1961505,4744.4,4743.8,3.312]
[1755139925208,0.1961505,4744.3,4743.8,3.312]
[1755139925419,0.1961505,4744.2,4743.8,3.312]
[1755139925622,1.1231505,4744.1,4743.8,3.312]
[1755139925825,0.1961505,4744.0,4743.8,3.312]
[1755139926006,0.1961505,4743.9,4743.8,7.59661568]
[1755139927113,0.1961505,4743.9,4743.8,3.312]
[1755139931223,0.6812505,4743.9,4743.8,3.312]
[1755139931534,1.1231505,4743.9,4743.3,5.05]
[1755139931738,1.1231505,4743.8,4743.4,3.311]
[1755139931931,17.37344408,4744.8,4743.4,3.311]
[1755139931932,0.6380505,4743.7,4743.4,3.311]
[1755139932138,15.6231505,4743.6,4743.4,3.311]
[1755139932321,0.1961505,4743.5,4743.4,3.311]
[1755139932845,0.1961505,4743.5,4743.4,8.361]
[1755139933440,0.6812505,4743.5,4743.4,8.361]
[1755139933816,1.1231505,4743.5,4743.4,8.361]
[1755139934613,1.1231505,4743.5,4743.4,9.33461568]
[1755139934816,1.1231505,4743.5,4743.4,12.64561568]
[1755139935442,1.1231505,4743.5,4743.4,9.33461568]
[1755139935645,1.1231505,4743.5,4743.4,12.64461568]
[1755139936344,1.1231505,4743.5,4743.4,9.33461568]
[1755139936528,1.1231505,4743.5,4743.4,12.64461568]
[1755139937637,15.6231505,4743.5,4743.4,5.05]
[1755139937817,15.6231505,4743.5,4743.4,8.36]
[1755139939945,14.6961505,4743.5,4743.4,8.36]
[1755139941119,14.5,4743.5,4743.4,8.36]
[1755139941651,14.5,4743.5,4743.4,12.64461568]
[1755139941950,0.9521,4744.4,4743.4,12.64461568]
[1755139942275,15.4521,4744.3,4743.4,12.64461568]
[1755139942424,15.4521,4744.3,4743.5,3.309]
[1755139942425,14.5,4744.3,4743.5,3.309]
[1755139942623,1.14868309,4744.2,4743.5,3.309]
[1755139943325,0.9521,4744.2,4743.5,3.309]
[1755139943764,14.5,4744.3,4743.5,3.309]
[1755139944422,14.5,4744.3,4743.6,4.28461568]
[1755139944630,0.4603,4744.8,4743.7,3.309]
[1755139945135,14.5,4744.7,4743.7,3.309]
[1755139946358,14.5,4744.7,4743.8,4.28461568]
[1755139946556,0.62060683,4746.0,4743.8,4.28461568]
[1755139946557,0.9521,4745.5,4743.9,0.3356]
[1755139946740,0.9521,4745.5,4744.0,7.59361568]
[1755139947160,14.5,4745.4,4744.0,7.59361568]
[1755139947561,14.5,4745.4,4744.1,4.28461568]
[1755139947865,14.5,4745.4,4744.2,4.28461568]
[1755139948024,14.5,4745.4,4744.3,3.308]
[1755139948234,14.5,4745.4,4744.4,3.6436]
[1755139948459,0.9521,4746.0,4744.5,3.308]
[1755139948664,0.19646548,4747.4,4744.5,3.308]
[1755139948834,0.4918,4746.7,4744.6,0.4123]
[1755139949152,0.4603,4746.6,4744.6,0.4123]
[1755139949838,14.9918,4746.5,4744.6,0.4123]
[1755139950034,0.4603,4746.4,4744.6,0.4123]
[1755139950738,14.5,4746.3,4744.6,0.4123]
[1755139951534,0.9521,4746.2,4744.5,3.308]
[1755139951948,0.9521,4746.1,4744.5,3.308]
[1755139952254,0.9521,4746.0,4744.5,3.308]
[1755139952560,0.4918,4745.9,4744.5,3.6436]
[1755139952755,0.4603,4746.1,4744.5,3.308]
[1755139953058,0.4603,4746.1,4744.6,0.3356]
[1755139953232,0.9521,4747.1,4745.1,37.65434212]
[1755139953432,0.9521,4747.1,4745.2,3.7193]
[1755139953855,0.9521,4747.1,4745.3,0.4123]
[1755139954234,0.9521,4747.1,4745.4,0.0767]
[1755139954428,0.9521,4747.6,4745.4,0.0767]
[1755139954656,0.9521,4747.6,4745.5,0.3356]
[1755139954831,0.9521,4747.6,4745.6,5.05]
[1755139955031,0.9521,4747.5,4745.6,5.05]
[1755139955235,0.9521,4747.4,4745.6,5.05]
[1755139955434,0.9521,4747.3,4745.7,3.306]
[1755139955658,0.9521,4747.2,4745.6,5.05]
[1755139955860,0.9521,4747.1,4745.7,3.306]
[1755139956059,0.9521,4747.0,4745.7,3.306]
[1755139956234,0.9521,4746.9,4745.7,3.306]
[1755139956433,0.19607743,4747.7,4745.7,3.306]
[1755139956648,0.9521,4746.8,4745.7,3.306]
[1755139956830,0.9521,4746.7,4745.7,3.306]
[1755139957147,0.9521,4746.6,4745.7,3.306]
[1755139957460,0.9521,4746.5,4745.7,3.306]
[1755139957660,0.6469681,4747.7,4745.7,3.306]
[1755139957868,0.9521,4746.4,4745.7,3.306]
[1755139958066,0.9521,4746.3,4745.7,3.306]
[1755139958370,0.9521,4746.2,4745.7,3.306]
[1755139958557,0.9521,4746.1,4745.7,3.306]
[1755139958868,0.9521,4746.0,4745.7,3.306]
[1755139959239,1.20791304,4748.3,4745.7,3.306]
[1755139959439,0.9521,4746.6,4745.7,3.306]
[1755139962759,0.64687457,4748.3,4745.7,3.306]
[1755139962760,0.9521,4746.9,4745.7,3.306]
[1755139963767,0.4603,4746.8,4745.7,3.306]
[1755139965277,0.4918,4746.7,4745.7,3.306]
[1755139965764,0.4603,4746.6,4745.7,3.306]
[1755139970350,0.4918,4746.7,4745.7,3.306]
[1755139970982,0.4603,4747.1,4745.7,3.306]
[1755139972098,0.4603,4747.1,4745.8,0.3356]
[1755139973688,0.4603,4747.1,4745.7,3.306]
[1755139973689,0.489,4747.0,4745.7,3.306]
[1755139973871,0.4402,4746.9,4745.7,3.306]
[1755139974057,0.489,4746.8,4745.7,3.306]
[1755139974584,0.4402,4746.7,4745.8,4.28461568]
[1755139974884,0.489,4746.8,4745.8,4.28461568]
[1755139977860,0.4402,4746.7,4745.8,4.28461568]
[1755139978090,0.489,4746.6,4745.8,4.28461568]
[1755139978456,0.4402,4746.5,4745.8,4.28461568]
[1755139978651,0.489,4746.4,4745.9,4.28461568]
[1755139978857,0.4402,4746.3,4745.7,4.28461568]
[1755139979052,0.4402,4746.3,4745.8,7.58561568]
[1755139979287,0.489,4746.2,4745.8,7.58561568]
[1755139979582,0.4402,4746.1,4745.8,7.58561568]
[1755139979793,0.489,4746.0,4745.8,7.58561568]
[1755139979967,0.4402,4745.9,4745.8,7.58561568]
[1755139980290,0.9292,4745.9,4745.8,7.58561568]
[1755139980591,0.45221669,4747.2,4745.8,3.301]
[1755139980592,0.489,4746.6,4745.8,3.301]
[1755139980763,0.4402,4746.5,4745.8,3.301]
[1755139981087,0.489,4746.4,4745.8,3.301]
[1755139981464,0.4402,4746.3,4745.6,5.05]
[1755139981781,0.489,4746.2,4745.9,3.301]
[1755139981983,0.9292,4746.1,4746.0,3.3]
[1755139982386,0.9292,4746.1,4745.6,5.05]
[1755139982598,0.9292,4746.1,4745.7,3.3]
[1755139982956,0.9292,4747.0,4745.8,3.3]
[1755139983259,0.9292,4747.0,4745.9,4.28461568]
[1755139983480,0.9292,4747.0,4745.8,3.3]
[1755139983790,0.9292,4747.0,4745.9,4.28461568]
[1755139984089,0.45310302,4748.4,4745.8,3.3]
[1755139984090,0.9292,4747.5,4746.0,4.62021568]
[1755139984295,0.9292,4747.5,4746.1,4.28461568]
[1755139984473,0.9292,4747.5,4746.2,7.58461568]
[1755139984670,0.9292,4747.5,4746.3,4.28461568]
[1755139984887,0.9292,4747.4,4746.3,4.28461568]
[1755139985085,0.9292,4747.4,4746.2,3.3]
[1755139985086,0.9292,4747.3,4746.4,4.28461568]
[1755139986171,0.9292,4747.3,4746.5,4.28461568]
[1755139986368,0.9292,4747.3,4746.6,3.3]
[1755139986563,0.3505886,4748.3,4745.7,4.28461568]
[1755139986791,0.9292,4747.2,4745.8,3.299]
[1755139987006,0.19665993,4748.1,4745.8,3.299]
[1755139987172,0.9292,4747.1,4745.9,7.58361568]
[1755139987359,0.9292,4747.0,4746.0,4.28461568]
[1755139987698,0.19665993,4748.2,4745.9,3.299]
[1755139987991,0.68565993,4748.2,4746.1,0.0767]
[1755139988192,0.489,4748.2,4746.1,0.0767]
[1755139988563,0.489,4748.2,4746.2,0.3356]
[1755139988768,0.4402,4748.3,4746.3,3.3757]
[1755139989075,0.56637877,4749.8,4746.7,37.65434212]
[1755139989076,0.9292,4749.2,4746.7,37.65434212]
[1755139989273,0.9292,4749.2,4746.8,3.299]
[1755139989480,0.9292,4749.2,4746.8,3.7113]
[1755139989679,0.9292,4749.2,4746.9,0.4123]
[1755139990269,0.9292,4749.2,4747.0,0.0767]
[1755139990674,0.9292,4749.2,4747.1,0.3356]
[1755139990870,0.9292,4749.2,4747.2,3.299]
[1755139991076,0.9292,4749.2,4747.2,3.3757]
[1755139991287,0.9292,4749.2,4747.3,0.3356]
[1755139991778,0.9292,4749.2,4747.4,3.298]
[1755139992094,0.9292,4749.1,4747.3,0.3356]
[1755139992295,0.9292,4749.0,4747.4,3.298]
[1755139992499,0.489,4749.8,4747.5,37.65434212]
[1755139992702,0.489,4749.8,4747.6,0.4123]
[1755139992880,0.4402,4750.0,4748.2,37.65434212]
[1755139993075,0.9292,4750.4,4748.3,8.345]
[1755139993409,0.9292,4750.4,4748.3,8.7573]
[1755139993700,0.489,4750.4,4748.4,0.4123]
[1755139993917,0.489,4751.1,4748.4,0.4123]
[1755139994078,0.489,4751.1,4748.4,0.3356]
[1755139994283,0.489,4751.1,4748.5,0.0767]
[1755139994591,0.4402,4751.0,4748.5,0.0767]
[1755139994971,0.4402,4751.0,4748.6,0.3356]
[1755139995166,0.4402,4751.0,4748.7,3.3737]
[1755139995371,0.4402,4751.0,4748.8,0.3356]
[1755139995573,0.489,4750.9,4748.8,0.3356]
[1755139995774,0.4402,4750.8,4748.8,0.3356]
[1755139996386,0.4402,4750.8,4748.9,0.0767]
[1755139996975,0.4402,4750.8,4749.0,0.3356]
[1755139997486,0.489,4750.9,4749.0,0.3356]
[1755139998210,0.4402,4750.8,4749.0,0.3356]
[1755139998425,0.4402,4750.8,4749.1,3.296]
[1755139998885,0.4402,4750.8,4749.2,4.28461568]
[1755139999072,0.4402,4750.8,4749.3,4.28461568]
[1755139999273,0.4402,4750.8,4749.4,4.28461568]
[1755139999473,0.4402,4750.8,4749.5,4.28461568]
[1755139999674,0.4402,4750.8,4749.6,3.296]
[1755140000175,0.489,4750.7,4749.6,3.296]
[1755140001678,0.889,4751.2,4749.7,4.62021568]
[1755140001936,37.65434212,4753.2,4749.7,4.62021568]
[1755140001937,0.4353,4751.7,4749.8,4.62021568]
[1755140002201,0.4353,4751.7,4749.9,4.69691568]
[1755140002402,0.4537,4752.1,4750.0,0.4123]
[1755140002571,0.4537,4752.1,4750.4,37.65434212]
[1755140002771,0.4537,4752.1,4750.5,8.6746]
[1755140002977,0.4353,4752.2,4750.5,8.6746]
[1755140003277,0.4537,4752.5,4750.6,4.69691568]
[1755140003499,0.4537,4752.5,4751.1,37.65434212]
[1755140003701,0.4353,4752.6,4751.2,3.6296]
[1755140004011,0.19665993,4754.9,4751.2,3.6296]
[1755140004012,0.4537,4752.9,4751.2,3.6296]
[1755140004518,0.4353,4752.8,4751.2,3.6296]
[1755140005606,0.4537,4752.9,4751.1,37.65434212]
[1755140005832,0.4353,4752.7,4751.2,3.293]
[1755140006125,0.4537,4752.6,4751.3,3.293]
[1755140006422,14.9353,4752.5,4751.4,3.293]
[1755140006723,0.889,4752.4,4751.4,3.293]
[1755140006907,0.889,4752.4,4750.5,43.03394212]
[1755140007107,0.889,4752.4,4750.6,3.293]
[1755140007411,14.5,4752.3,4750.6,3.293]
[1755140008205,0.4353,4752.7,4751.2,37.65434212]
[1755140008408,0.4353,4752.7,4751.3,3.6286]
[1755140008716,14.5,4752.8,4751.3,3.6286]
[1755140009029,14.5,4752.8,4751.4,4.28461568]
[1755140010308,0.4353,4752.7,4751.4,4.28461568]
[1755140010827,0.889,4752.7,4751.5,3.292]
[1755140011213,15.389,4752.6,4751.5,3.292]
[1755140011419,0.889,4752.5,4751.5,3.292]
[1755140011724,37.65434212,4754.7,4751.5,3.292]
[1755140011944,1.53035355,4754.6,4751.6,3.292]
[1755140012109,14.5,4753.1,4751.7,8.334]
[1755140012434,1.08308977,4753.0,4751.8,3.292]
[1755140012797,37.65434212,4754.0,4751.7,5.042]
[1755140012798,0.889,4752.9,4751.7,5.042]
[1755140012998,14.5,4752.3,4751.8,3.292]
[1755140013201,1.08308977,4752.2,4751.8,3.292]
[1755140013397,0.64808057,4752.2,4751.8,3.292]
[1755140013638,0.4537,4752.7,4751.8,3.292]